Workbook

Sheet Лист1
A1: Школа | B1: ГБОУ "Маскаринская школа- интернат для детей с ограниченными возможностями здоровья" | E1: Отд./корп | F1: 1 день | I1: Дата | J1: 2025-12-01
A4: Прием пищи | B4: Раздел меню | C4: № рецептуры | D4: Блюда | E4: Выход, г | F4: Цена | G4: Калорийность | H4: Белки | I4: Жиры | J4: Углеводы
A5: Завтрак | B5: гор.блюдо | C5: 20 | D5: Каша манная молочная | E5: 200 | F5: 21.83 | G5: 200 | H5: 6 | I5: 5 | J5: 30.8
B6: масло | D6: Масло сливочное | E6: 10 | F6: 12.06 | G6: 105 | H6: 0.4 | I6: 62.5 | J6: 0.8
B7: гор.напиток | C7: 63 | D7: Какао с молоком | E7: 200 | F7: 13.17 | G7: 135 | H7: 4.62 | I7: 4.02 | J7: 43.8
B8: хлеб | C8: 37 | D8: Хлеб пшеничный | E8: 120 | F8: 7.92 | G8: 284.1 | H8: 3.1 | I8: 0.2 | J8: 20.1
B9: фрукты | C9: 61 | D9: Апельсин | E9: 100 | F9: 13.9 | G9: 36 | H9: 1.4 | I9: 0.3 | J9: 8.1
B10: сыр | C10: 48 | D10: Сыр | E10: 24 | F10: 20 | G10: 67.4 | H10: 4.3 | I10: 5.4 | J10: 0
B12: итого | E12: =of:=SUM([.E5:.E11]) -> 654 | F12: =of:=SUM([.F5:.F11]) -> 88.88 | G12: =of:=SUM([.G5:.G11]) -> 827.5 | H12: =of:=SUM([.H5:.H11]) -> 19.82 | I12: =of:=SUM([.I5:.I11]) -> 77.42 | J12: =of:=SUM([.J5:.J11]) -> 103.6
A13: Завтрак 2 | B13: фрукты | C13: 62 | D13: Банан | E13: 100 | F13: 15.6 | G13: 96 | H13: 1.4 | I13: 0.3 | J13: 12.1
B14: напиток | C14: 53 | D14: Компот из с/ф | E14: 200 | F14: 2.95 | G14: 110 | H14: 4 | I14: 0.06 | J14: 35.2
B15: выпечка | C15: 39 | D15: Ватрушка с творогом | E15: 100 | F15: 63.14 | G15: 248.3 | H15: 4.8 | I15: 4.7 | J15: 46.9
B16: хлеб | C16: 37 | D16: Хлеб пшеничный | E16: 120 | F16: 7.92 | G16: 284.1 | H16: 3.1 | I16: 0.2 | J16: 20.1
B17: итого | E17: =of:=SUM([.E13:.E16]) -> 520 | F17: =of:=SUM([.F13:.F16]) -> 89.61 | G17: =of:=SUM([.G13:.G16]) -> 738.4 | H17: =of:=SUM([.H13:.H16]) -> 13.3 | I17: =of:=SUM([.I13:.I16]) -> 5.26 | J17: =of:=SUM([.J13:.J16]) -> 114.3
A18: Обед | B18: закуска | C18: 31 | D18: Салат из белокач.капусты | E18: 100 | F18: 5.91 | G18: 105.5 | H18: 2.1 | I18: 8.5 | J18: 10.5
B19: 1 блюдо | C19: 7 | D19: Суп горох к/м | E19: 250 | F19: 24.07 | G19: 330.2 | H19: 9.2 | I19: 7.7 | J19: 16.3
B20: 2 блюдо | C20: 12 | D20: Каша пшенная мол. | E20: 200 | F20: 23.46 | G20: 285 | H20: 7.51 | I20: 11.72 | J20: 37.05
B21: гарнир | C21: 25 | D21: Гуляш из говядины | E21: 100 | F21: 33.85 | G21: 132.4 | H21: 10 | I21: 15.3 | J21: 5.5
B22: напиток | C22: 57 | D22: Сок | E22: 200 | F22: 12.4 | G22: 94 | H22: 0.8 | I22: 0 | J22: 23
B23: хлеб бел.
B24: хлеб черн. | C24: 36 | D24: Хлеб "Дарницкий" | E24: 80 | F24: 6.92 | G24: 164.8 | H24: 2.6 | I24: 0.4 | J24: 17
B27: итого | E27: =of:=SUM([.E18:.E26]) -> 930 | F27: =of:=SUM([.F18:.F26]) -> 106.61 | G27: =of:=SUM([.G18:.G26]) -> 1111.9 | H27: =of:=SUM([.H18:.H26]) -> 32.21 | I27: =of:=SUM([.I18:.I26]) -> 43.62 | J27: =of:=SUM([.J18:.J26]) -> 109.35
A28: Полдник | B28: булочное
B29: напиток
B32: итого | E32: =of:=SUM([.E28:.E31]) -> 0 | G32: =of:=SUM([.G28:.G31]) -> 0 | H32: =of:=SUM([.H28:.H31]) -> 0 | I32: =of:=SUM([.I28:.I31]) -> 0 | J32: =of:=SUM([.J28:.J31]) -> 0
A33: Ужин | B33: гор.блюдо | C33: 17 | D33: Картофельное пюре | E33: 200 | F33: 25.48 | G33: 207 | H33: 4.9 | I33: 7.2 | J33: 34
B34: гарнир | C34: 72 | D34: Рыба запеченная | E34: 100 | F34: 104.73 | G34: 153 | H34: 13.7 | I34: 6.2 | J34: 4.4
B35: напиток | C35: 51 | D35: Чай сладкий | E35: 200 | F35: 1.93 | G35: 39.9 | H35: 0.1 | I35: 0 | J35: 9.9
B36: хлеб | C36: 36 | D36: Хлеб"Дарницкий" | E36: 80 | F36: 6.92 | G36: 164.8 | H36: 2.6 | I36: 0.4 | J36: 17
B37: масло | C37: 50 | D37: Масло слив. | E37: 10 | F37: 12.06 | G37: 105 | H37: 0.4 | I37: 62.5 | J37: 0.8
B39: итого | E39: =of:=SUM([.E33:.E38]) -> 590 | F39: =of:=SUM([.F33:.F38]) -> 151.12 | G39: =of:=SUM([.G33:.G38]) -> 669.7 | H39: =of:=SUM([.H33:.H38]) -> 21.7 | I39: =of:=SUM([.I33:.I38]) -> 76.3 | J39: =of:=SUM([.J33:.J38]) -> 66.1
A40: Ужин 2 | B40: кисломол. | C40: 58 | D40: Ряженка | E40: 200 | F40: 24.08 | G40: 134 | H40: 12 | I40: 2 | J40: 8.4
B41: фрукты | C41: 60 | D41: Яблоки св. | E41: 100 | F41: 6.8 | G41: 68.6 | H41: 0.6 | I41: 0.6 | J41: 14.3
B42: напиток
B46: итого | E46: =of:=SUM([.E40:.E45]) -> 300 | F46: =of:=SUM([.F40:.F45]) -> 30.88 | G46: =of:=SUM([.G40:.G45]) -> 202.6 | H46: =of:=SUM([.H40:.H45]) -> 12.6 | I46: =of:=SUM([.I40:.I45]) -> 2.6 | J46: =of:=SUM([.J40:.J45]) -> 22.7
